[Event "Titled Tuesday Blitz January 10 Late 2023"]
[White "Oparin, Grigoriy"]
[Black "Domingo Nunez, Ruben"]
[WhiteFideId "24125890"]
[BlackFideId "22245570"]
[WhiteElo "2667"]
[BlackElo "2416"]
[Result "1-0"]
[Round "06"]
[TimeControl "180+2"]
[Date "2023.01.10"]
[WhiteClock "0:00:03"]
[BlackClock "0:00:02"]

1. b3 {[%clk 0:00:00]}  d6 {[%clk 0:00:00]} 2. Bb2 {[%clk 0:02:58]}  Nd7 {[%clk 0:02:59]} 3. c4 {[%clk 0:02:59]}  Ngf6 {[%clk 0:03:00]} 4. Nc3 {[%clk 0:02:59]}  g6 {[%clk 0:02:59]} 5. g3 {[%clk 0:02:59]}  Bg7 {[%clk 0:03:00]} 6. Bg2 {[%clk 0:03:00]}  O-O {[%clk 0:03:01]} 7. Nf3 {[%clk 0:03:00]}  c5 {[%clk 0:03:01]} 8. d4 {[%clk 0:02:59]}  Rb8 {[%clk 0:03:02]} 9. O-O {[%clk 0:02:59]}  a6 {[%clk 0:03:03]} 10. e4 {[%clk 0:02:59]}  b5 {[%clk 0:03:03]} 11. cxb5 {[%clk 0:02:55]}  axb5 {[%clk 0:03:03]} 12. e5 {[%clk 0:02:51]}  Ne8 {[%clk 0:03:04]} 13. exd6 {[%clk 0:02:49]}  Nxd6 {[%clk 0:03:03]} 14. Re1 {[%clk 0:02:46]}  c4 {[%clk 0:03:01]} 15. Nd5 {[%clk 0:02:40]}  Re8 {[%clk 0:02:51]} 16. Ne5 {[%clk 0:02:32]}  Bb7 {[%clk 0:01:58]} 17. Ba3 {[%clk 0:02:29]}  b4 {[%clk 0:01:54]} 18. Bxb4 {[%clk 0:02:19]}  Bxd5 {[%clk 0:01:31]} 19. Bxd5 {[%clk 0:01:59]}  Nxe5 {[%clk 0:01:30]} 20. Bxd6 {[%clk 0:01:59]}  Qxd6 {[%clk 0:01:07]} 21. dxe5 {[%clk 0:01:26]}  Bxe5 {[%clk 0:01:08]} 22. Rc1 {[%clk 0:01:26]}  c3 {[%clk 0:01:09]} 23. Qf3 {[%clk 0:01:20]}  e6 {[%clk 0:01:04]} 24. Bc4 {[%clk 0:01:17]}  Bg7 {[%clk 0:01:02]} 25. a4 {[%clk 0:01:17]}  Qa3 {[%clk 0:00:56]} 26. h4 {[%clk 0:01:16]}  Bh6 {[%clk 0:00:51]} 27. Rc2 {[%clk 0:01:12]}  Bd2 {[%clk 0:00:51]} 28. Rd1 {[%clk 0:01:11]}  Red8 {[%clk 0:00:51]} 29. Kg2 {[%clk 0:01:01]}  Rd6 {[%clk 0:00:50]} 30. h5 {[%clk 0:00:58]}  Rbd8 {[%clk 0:00:39]} 31. h6 {[%clk 0:00:57]}  Rd4 {[%clk 0:00:37]} 32. a5 {[%clk 0:00:52]}  Bxh6 {[%clk 0:00:30]} 33. Rxd4 {[%clk 0:00:31]}  Rxd4 {[%clk 0:00:16]} 34. Qxc3 {[%clk 0:00:31]}  Qd6 {[%clk 0:00:17]} 35. a6 {[%clk 0:00:31]}  Qb6 {[%clk 0:00:13]} 36. Ra2 {[%clk 0:00:29]}  Rd7 {[%clk 0:00:05]} 37. Qf3 {[%clk 0:00:27]}  Bf8 {[%clk 0:00:05]} 38. Bf1 {[%clk 0:00:17]}  Bc5 {[%clk 0:00:05]} 39. Qc3 {[%clk 0:00:14]}  Rc7 {[%clk 0:00:05]} 40. Rc2 {[%clk 0:00:13]}  Bd6 {[%clk 0:00:03]} 41. Qd3 {[%clk 0:00:13]}  Rd7 {[%clk 0:00:02]} 42. Qf3 {[%clk 0:00:12]}  Kg7 {[%clk 0:00:01]} 43. Rc6 {[%clk 0:00:11]}  Qa5 {[%clk 0:00:01]} 44. Qd3 {[%clk 0:00:11]}  Qb4 {[%clk 0:00:02]} 45. a7 {[%clk 0:00:08]}  Qb7 {[%clk 0:00:01]} 46. Qc3+ {[%clk 0:00:05]}  Be5 {[%clk 0:00:01]} 47. Qxe5+ {[%clk 0:00:02]}  f6 {[%clk 0:00:02]} 48. Qe4 {[%clk 0:00:02]}  f5 {[%clk 0:00:02]} 49. Qe5+ {[%clk 0:00:03]} 1-0


[Site "https://www.chess.com"]

[Event "Titled Tuesday Blitz January 10 Late 2023"]
[White "Zhigalko, Sergei"]
[Black "Vlassov, Nikolai"]
[WhiteFideId "13502956"]
[BlackFideId "4103360"]
[WhiteElo "2572"]
[BlackElo "2283"]
[Result "1-0"]
[Round "06"]
[TimeControl "180+2"]
[Date "2023.01.10"]
[WhiteClock "0:00:04"]
[BlackClock "0:00:10"]

1. e4 {[%clk 0:00:00]}  c5 {[%clk 0:00:00]} 2. Nf3 {[%clk 0:02:56]}  d6 {[%clk 0:02:59]} 3. Bb5+ {[%clk 0:02:55]}  Nc6 {[%clk 0:03:00]} 4. O-O {[%clk 0:02:54]}  Nf6 {[%clk 0:02:58]} 5. Re1 {[%clk 0:02:54]}  Bg4 {[%clk 0:02:56]} 6. h3 {[%clk 0:02:53]}  Bxf3 {[%clk 0:02:54]} 7. Qxf3 {[%clk 0:02:50]}  Qb6 {[%clk 0:02:53]} 8. Ba4 {[%clk 0:02:49]}  e6 {[%clk 0:02:53]} 9. c3 {[%clk 0:02:42]}  Be7 {[%clk 0:02:51]} 10. d3 {[%clk 0:02:42]}  O-O {[%clk 0:02:51]} 11. Nd2 {[%clk 0:02:42]}  Qa6 {[%clk 0:02:51]} 12. Bc2 {[%clk 0:02:42]}  b5 {[%clk 0:02:45]} 13. Qe2 {[%clk 0:02:42]}  b4 {[%clk 0:02:46]} 14. Nf3 {[%clk 0:02:32]}  Rab8 {[%clk 0:02:43]} 15. Bd2 {[%clk 0:02:32]}  bxc3 {[%clk 0:02:38]} 16. Bxc3 {[%clk 0:02:21]}  Nd7 {[%clk 0:02:36]} 17. d4 {[%clk 0:02:22]}  Qxe2 {[%clk 0:02:30]} 18. Rxe2 {[%clk 0:02:17]}  cxd4 {[%clk 0:02:29]} 19. Nxd4 {[%clk 0:02:18]}  Nxd4 {[%clk 0:02:25]} 20. Bxd4 {[%clk 0:02:19]}  Bf6 {[%clk 0:02:19]} 21. Bxf6 {[%clk 0:02:20]}  Nxf6 {[%clk 0:02:19]} 22. b3 {[%clk 0:02:14]}  Rfc8 {[%clk 0:02:18]} 23. Rd1 {[%clk 0:02:11]}  Rb6 {[%clk 0:02:17]} 24. Bd3 {[%clk 0:02:12]}  Kf8 {[%clk 0:02:13]} 25. Bc4 {[%clk 0:01:44]}  Ke7 {[%clk 0:02:11]} 26. e5 {[%clk 0:01:41]}  dxe5 {[%clk 0:02:09]} 27. Rxe5 {[%clk 0:01:40]}  Rd8 {[%clk 0:02:08]} 28. Rxd8 {[%clk 0:01:41]}  Kxd8 {[%clk 0:01:55]} 29. Ra5 {[%clk 0:01:37]}  Rb7 {[%clk 0:01:55]} 30. g4 {[%clk 0:01:38]}  Kc7 {[%clk 0:01:55]} 31. Kg2 {[%clk 0:01:39]}  Kb8 {[%clk 0:01:38]} 32. g5 {[%clk 0:01:36]}  Ne4 {[%clk 0:01:36]} 33. h4 {[%clk 0:01:32]}  Rd7 {[%clk 0:01:34]} 34. Kf3 {[%clk 0:01:32]}  Nd2+ {[%clk 0:01:33]} 35. Ke3 {[%clk 0:01:31]}  Nxc4+ {[%clk 0:01:32]} 36. bxc4 {[%clk 0:01:30]}  Kb7 {[%clk 0:01:29]} 37. Rb5+ {[%clk 0:01:31]}  Kc6 {[%clk 0:01:29]} 38. Rb8 {[%clk 0:01:00]}  f6 {[%clk 0:01:28]} 39. f4 {[%clk 0:00:58]}  Kc5 {[%clk 0:00:59]} 40. Rc8+ {[%clk 0:00:49]}  Kb4 {[%clk 0:00:58]} 41. Rc6 {[%clk 0:00:48]}  e5 {[%clk 0:00:58]} 42. f5 {[%clk 0:00:43]}  Rd4 {[%clk 0:00:50]} 43. gxf6 {[%clk 0:00:39]}  gxf6 {[%clk 0:00:45]} 44. Rxf6 {[%clk 0:00:23]}  Rxh4 {[%clk 0:00:44]} 45. Re6 {[%clk 0:00:24]}  Rxc4 {[%clk 0:00:44]} 46. Rxe5 {[%clk 0:00:23]}  Rc5 {[%clk 0:00:28]} 47. Ke4 {[%clk 0:00:22]}  Rc4+ {[%clk 0:00:24]} 48. Kd5 {[%clk 0:00:12]}  Rc2 {[%clk 0:00:17]} 49. Re4+ {[%clk 0:00:12]}  Ka3 {[%clk 0:00:15]} 50. f6 {[%clk 0:00:11]}  Rxa2 {[%clk 0:00:15]} 51. Rf4 {[%clk 0:00:06]}  Rd2+ {[%clk 0:00:14]} 52. Ke6 {[%clk 0:00:03]}  Rd8 {[%clk 0:00:14]} 53. Ke7 {[%clk 0:00:03]}  Rh8 {[%clk 0:00:14]} 54. f7 {[%clk 0:00:04]}  a5 {[%clk 0:00:14]} 55. Rg4 {[%clk 0:00:03]}  Ra8 {[%clk 0:00:14]} 56. Ke6 {[%clk 0:00:03]}  a4 {[%clk 0:00:14]} 57. Rg8 {[%clk 0:00:03]}  Ra6+ {[%clk 0:00:13]} 58. Ke5 {[%clk 0:00:03]}  Ra5+ {[%clk 0:00:13]} 59. Ke4 {[%clk 0:00:04]}  Kb2 {[%clk 0:00:14]} 60. f8=Q {[%clk 0:00:04]}  a3 {[%clk 0:00:10]} 61. Qb4+ {[%clk 0:00:04]} 1-0


[Site "https://www.chess.com"]

[Event "Titled Tuesday Blitz January 10 Late 2023"]
[White "Jaferian, Koosha"]
[Black "Kuznetsov, Felix"]
[WhiteFideId "12507440"]
[BlackFideId "34147990"]
[WhiteElo "2233"]
[BlackElo "2254"]
[Result "1-0"]
[Round "06"]
[TimeControl "180+2"]
[Date "2023.01.10"]
[WhiteClock "0:00:06"]
[BlackClock "0:00:07"]

1. e4 {[%clk 0:00:00]}  c5 {[%clk 0:00:00]} 2. Nc3 {[%clk 0:03:00]}  d6 {[%clk 0:03:00]} 3. f4 {[%clk 0:02:59]}  Nc6 {[%clk 0:02:58]} 4. Nf3 {[%clk 0:02:59]}  g6 {[%clk 0:02:58]} 5. Bc4 {[%clk 0:02:59]}  Bg7 {[%clk 0:02:58]} 6. O-O {[%clk 0:03:00]}  e6 {[%clk 0:02:58]} 7. d4 {[%clk 0:03:00]}  cxd4 {[%clk 0:02:58]} 8. Nb5 {[%clk 0:03:01]}  a6 {[%clk 0:02:53]} 9. Nbxd4 {[%clk 0:03:01]}  Nge7 {[%clk 0:02:52]} 10. Bb3 {[%clk 0:03:00]}  O-O {[%clk 0:02:52]} 11. c3 {[%clk 0:02:58]}  b5 {[%clk 0:02:51]} 12. Be3 {[%clk 0:02:58]}  Bb7 {[%clk 0:02:36]} 13. Bc2 {[%clk 0:02:57]}  Rc8 {[%clk 0:02:35]} 14. Qe2 {[%clk 0:02:57]}  Qc7 {[%clk 0:02:23]} 15. Rad1 {[%clk 0:02:43]}  b4 {[%clk 0:02:14]} 16. Rc1 {[%clk 0:02:42]}  bxc3 {[%clk 0:02:10]} 17. bxc3 {[%clk 0:01:52]}  Qa5 {[%clk 0:02:09]} 18. Bb3 {[%clk 0:01:53]}  Rfd8 {[%clk 0:01:56]} 19. Rfd1 {[%clk 0:01:51]}  Nxd4 {[%clk 0:01:50]} 20. Bxd4 {[%clk 0:01:49]}  Bxd4+ {[%clk 0:01:46]} 21. cxd4 {[%clk 0:01:46]}  d5 {[%clk 0:01:33]} 22. e5 {[%clk 0:01:47]}  Rc3 {[%clk 0:01:33]} 23. Rxc3 {[%clk 0:01:41]}  Qxc3 {[%clk 0:01:24]} 24. Qd2 {[%clk 0:01:11]}  Rc8 {[%clk 0:01:24]} 25. Qxc3 {[%clk 0:01:12]}  Rxc3 {[%clk 0:01:22]} 26. Kf2 {[%clk 0:00:59]}  a5 {[%clk 0:01:23]} 27. Rd2 {[%clk 0:00:59]}  Ba6 {[%clk 0:01:20]} 28. Rc2 {[%clk 0:00:58]}  Rxc2+ {[%clk 0:01:03]} 29. Bxc2 {[%clk 0:00:55]}  Bc4 {[%clk 0:01:03]} 30. a3 {[%clk 0:00:56]}  Kg7 {[%clk 0:01:04]} 31. Nd2 {[%clk 0:00:46]}  Ba2 {[%clk 0:01:03]} 32. Bb3 {[%clk 0:00:44]}  Bxb3 {[%clk 0:00:48]} 33. Nxb3 {[%clk 0:00:25]}  Nc6 {[%clk 0:00:48]} 34. Ke3 {[%clk 0:00:26]}  h6 {[%clk 0:00:48]} 35. a4 {[%clk 0:00:24]}  g5 {[%clk 0:00:45]} 36. fxg5 {[%clk 0:00:23]}  hxg5 {[%clk 0:00:44]} 37. g3 {[%clk 0:00:19]}  f6 {[%clk 0:00:45]} 38. exf6+ {[%clk 0:00:17]}  Kxf6 {[%clk 0:00:44]} 39. h4 {[%clk 0:00:17]}  Kf5 {[%clk 0:00:45]} 40. h5 {[%clk 0:00:17]}  g4 {[%clk 0:00:37]} 41. h6 {[%clk 0:00:16]}  Kg6 {[%clk 0:00:29]} 42. Kf4 {[%clk 0:00:17]}  Kxh6 {[%clk 0:00:28]} 43. Kxg4 {[%clk 0:00:17]}  Kg6 {[%clk 0:00:28]} 44. Kf4 {[%clk 0:00:18]}  Kf6 {[%clk 0:00:28]} 45. g4 {[%clk 0:00:18]}  Kg6 {[%clk 0:00:28]} 46. g5 {[%clk 0:00:18]}  Kh5 {[%clk 0:00:20]} 47. Nd2 {[%clk 0:00:15]}  Nxd4 {[%clk 0:00:18]} 48. Ke5 {[%clk 0:00:05]}  Nf3+ {[%clk 0:00:16]} 49. Nxf3 {[%clk 0:00:05]}  Kg4 {[%clk 0:00:06]} 50. g6 {[%clk 0:00:05]}  Kxf3 {[%clk 0:00:05]} 51. g7 {[%clk 0:00:05]}  Ke3 {[%clk 0:00:05]} 52. g8=Q {[%clk 0:00:05]}  d4 {[%clk 0:00:06]} 53. Qg3+ {[%clk 0:00:06]}  Ke2 {[%clk 0:00:07]} 54. Kxd4 {[%clk 0:00:06]} 1-0


[Site "https://www.chess.com"]

[Event "Titled Tuesday Blitz January 10 Late 2023"]
[White "Preotu, Razvan"]
[Black "Klose, Eli"]
[WhiteFideId "2613280"]
[BlackFideId "16242955"]
[WhiteElo "2475"]
[BlackElo "1519"]
[Result "0-1"]
[Round "06"]
[TimeControl "180+2"]
[Date "2023.01.10"]
[WhiteClock "0:00:55"]
[BlackClock "0:00:38"]

1. e4 {[%clk 0:00:00]}  e6 {[%clk 0:00:00]} 2. d4 {[%clk 0:03:00]}  d5 {[%clk 0:02:57]} 3. Nc3 {[%clk 0:03:00]}  Bb4 {[%clk 0:02:57]} 4. e5 {[%clk 0:03:01]}  Ne7 {[%clk 0:02:53]} 5. a3 {[%clk 0:03:01]}  Bxc3+ {[%clk 0:02:52]} 6. bxc3 {[%clk 0:03:02]}  b6 {[%clk 0:02:52]} 7. h4 {[%clk 0:03:02]}  Ba6 {[%clk 0:02:53]} 8. Qg4 {[%clk 0:02:41]}  Bxf1 {[%clk 0:02:51]} 9. Kxf1 {[%clk 0:02:42]}  Nf5 {[%clk 0:02:48]} 10. h5 {[%clk 0:02:43]}  h6 {[%clk 0:02:44]} 11. a4 {[%clk 0:02:40]}  Nc6 {[%clk 0:02:42]} 12. Nf3 {[%clk 0:02:34]}  Qd7 {[%clk 0:02:42]} 13. Nh4 {[%clk 0:02:20]}  Nce7 {[%clk 0:02:41]} 14. a5 {[%clk 0:02:20]}  Qc6 {[%clk 0:02:38]} 15. Rh3 {[%clk 0:02:04]}  Nxh4 {[%clk 0:02:29]} 16. Qxh4 {[%clk 0:01:59]}  Qc4+ {[%clk 0:02:27]} 17. Kg1 {[%clk 0:02:00]}  Qe2 {[%clk 0:02:24]} 18. axb6 {[%clk 0:01:59]}  cxb6 {[%clk 0:02:18]} 19. Ba3 {[%clk 0:01:53]}  Nf5 {[%clk 0:02:16]} 20. Qf4 {[%clk 0:01:46]}  Qxc2 {[%clk 0:02:13]} 21. g4 {[%clk 0:01:46]}  Ne7 {[%clk 0:02:03]} 22. Rf3 {[%clk 0:01:29]}  Rf8 {[%clk 0:02:03]} 23. c4 {[%clk 0:01:30]}  Rc8 {[%clk 0:01:59]} 24. Bxe7 {[%clk 0:01:20]}  Kxe7 {[%clk 0:01:23]} 25. Ra2 {[%clk 0:01:19]}  Qxa2 {[%clk 0:01:11]} 26. g5 {[%clk 0:01:19]}  Qb1+ {[%clk 0:01:04]} 27. Kh2 {[%clk 0:01:04]}  Qe4 {[%clk 0:00:59]} 28. Qg3 {[%clk 0:01:03]}  Rxc4 {[%clk 0:00:52]} 29. gxh6 {[%clk 0:01:03]}  gxh6 {[%clk 0:00:44]} 30. Ra3 {[%clk 0:01:02]}  a5 {[%clk 0:00:44]} 31. Qg7 {[%clk 0:01:00]}  Qf4+ {[%clk 0:00:42]} 32. Kg2 {[%clk 0:00:55]}  Qg5+ {[%clk 0:00:38]} 0-1


[Site "https://www.chess.com"]

[Event "Titled Tuesday Blitz January 10 Late 2023"]
[White "Adewumi, Tanitoluwa"]
[Black "Jaracz, Pawel"]
[WhiteFideId "30966396"]
[BlackFideId "1102222"]
[WhiteElo "2283"]
[BlackElo "2467"]
[Result "0-1"]
[Round "06"]
[TimeControl "180+2"]
[Date "2023.01.10"]
[WhiteClock "0:00:03"]
[BlackClock "0:00:52"]

1. e4 {[%clk 0:00:00]}  d6 {[%clk 0:00:00]} 2. d4 {[%clk 0:03:00]}  g6 {[%clk 0:02:58]} 3. Nc3 {[%clk 0:02:40]}  c6 {[%clk 0:02:58]} 4. Be2 {[%clk 0:02:39]}  Bg7 {[%clk 0:02:58]} 5. Be3 {[%clk 0:02:36]}  Qb6 {[%clk 0:02:57]} 6. Rb1 {[%clk 0:02:28]}  Nf6 {[%clk 0:02:55]} 7. Nf3 {[%clk 0:02:25]}  Bg4 {[%clk 0:02:52]} 8. Nd2 {[%clk 0:02:16]}  Bxe2 {[%clk 0:02:49]} 9. Qxe2 {[%clk 0:02:11]}  O-O {[%clk 0:02:48]} 10. O-O {[%clk 0:02:12]}  Qa6 {[%clk 0:02:48]} 11. Qxa6 {[%clk 0:02:01]}  Nxa6 {[%clk 0:02:45]} 12. f3 {[%clk 0:01:57]}  Nb4 {[%clk 0:02:45]} 13. Rfc1 {[%clk 0:01:58]}  d5 {[%clk 0:02:29]} 14. a3 {[%clk 0:01:51]}  Na6 {[%clk 0:02:18]} 15. e5 {[%clk 0:01:46]}  Nd7 {[%clk 0:02:19]} 16. b4 {[%clk 0:01:41]}  b5 {[%clk 0:02:18]} 17. f4 {[%clk 0:01:41]}  Nc7 {[%clk 0:02:14]} 18. Nf3 {[%clk 0:01:29]}  Nb6 {[%clk 0:02:13]} 19. Nd2 {[%clk 0:01:23]}  a5 {[%clk 0:02:04]} 20. Ra1 {[%clk 0:01:19]}  f6 {[%clk 0:02:03]} 21. g3 {[%clk 0:01:03]}  Bh6 {[%clk 0:01:56]} 22. bxa5 {[%clk 0:00:59]}  Rxa5 {[%clk 0:01:52]} 23. Nb3 {[%clk 0:00:54]}  Raa8 {[%clk 0:01:52]} 24. Nc5 {[%clk 0:00:53]}  Nc4 {[%clk 0:01:52]} 25. Bf2 {[%clk 0:00:52]}  Rxa3 {[%clk 0:01:51]} 26. Rxa3 {[%clk 0:00:47]}  Nxa3 {[%clk 0:01:40]} 27. exf6 {[%clk 0:00:25]}  exf6 {[%clk 0:01:41]} 28. Nd7 {[%clk 0:00:14]}  Rf7 {[%clk 0:01:40]} 29. Nb8 {[%clk 0:00:12]}  b4 {[%clk 0:01:37]} 30. Na2 {[%clk 0:00:12]}  Bf8 {[%clk 0:01:31]} 31. Nxc6 {[%clk 0:00:07]}  Na6 {[%clk 0:00:55]} 32. Be1 {[%clk 0:00:06]}  Rb7 {[%clk 0:00:56]} 33. Nd8 {[%clk 0:00:05]}  Rb6 {[%clk 0:00:53]} 34. Nxb4 {[%clk 0:00:03]}  Nxb4 {[%clk 0:00:52]} 0-1


[Site "https://www.chess.com"]

[Event "Titled Tuesday Blitz January 10 Late 2023"]
[White "Richter, Paul"]
[Black "Borges Feria, Yasel"]
[WhiteFideId "2046350"]
[BlackFideId "3504921"]
[WhiteElo "2171"]
[BlackElo "2439"]
[Result "1-0"]
[Round "06"]
[TimeControl "180+2"]
[Date "2023.01.10"]
[WhiteClock "0:00:07"]
[BlackClock "0:00:03"]

1. e4 {[%clk 0:00:00]}  c6 {[%clk 0:00:00]} 2. Nc3 {[%clk 0:03:00]}  d5 {[%clk 0:02:55]} 3. Nf3 {[%clk 0:03:00]}  Bg4 {[%clk 0:02:53]} 4. h3 {[%clk 0:03:01]}  Bxf3 {[%clk 0:02:51]} 5. Qxf3 {[%clk 0:03:00]}  e6 {[%clk 0:02:50]} 6. g3 {[%clk 0:03:01]}  Nf6 {[%clk 0:02:51]} 7. Bg2 {[%clk 0:03:01]}  d4 {[%clk 0:02:40]} 8. Ne2 {[%clk 0:03:00]}  e5 {[%clk 0:02:39]} 9. O-O {[%clk 0:02:59]}  Be7 {[%clk 0:02:37]} 10. g4 {[%clk 0:02:53]}  Nfd7 {[%clk 0:02:34]} 11. c3 {[%clk 0:02:49]}  c5 {[%clk 0:02:19]} 12. b4 {[%clk 0:02:45]}  Nc6 {[%clk 0:02:16]} 13. bxc5 {[%clk 0:02:41]}  Bxc5 {[%clk 0:02:10]} 14. Rb1 {[%clk 0:02:33]}  b6 {[%clk 0:02:01]} 15. cxd4 {[%clk 0:02:26]}  Nxd4 {[%clk 0:02:01]} 16. Nxd4 {[%clk 0:02:23]}  Bxd4 {[%clk 0:01:52]} 17. Ba3 {[%clk 0:02:22]}  Nc5 {[%clk 0:01:49]} 18. Kh1 {[%clk 0:02:00]}  O-O {[%clk 0:01:44]} 19. Qg3 {[%clk 0:01:43]}  Qd7 {[%clk 0:01:42]} 20. f4 {[%clk 0:01:39]}  exf4 {[%clk 0:01:32]} 21. Qxf4 {[%clk 0:01:36]}  Rad8 {[%clk 0:01:29]} 22. Rbd1 {[%clk 0:01:33]}  g6 {[%clk 0:01:28]} 23. Bxc5 {[%clk 0:01:05]}  Bxc5 {[%clk 0:01:24]} 24. e5 {[%clk 0:00:42]}  Qd4 {[%clk 0:01:14]} 25. Qg3 {[%clk 0:00:31]}  Rfe8 {[%clk 0:01:06]} 26. Rfe1 {[%clk 0:00:29]}  Bf8 {[%clk 0:01:01]} 27. Re4 {[%clk 0:00:23]}  Qb2 {[%clk 0:00:56]} 28. Qf4 {[%clk 0:00:19]}  Qxa2 {[%clk 0:00:52]} 29. d4 {[%clk 0:00:18]}  Bg7 {[%clk 0:00:40]} 30. Re3 {[%clk 0:00:17]}  Qa4 {[%clk 0:00:36]} 31. Rf1 {[%clk 0:00:15]}  Qxd4 {[%clk 0:00:32]} 32. Qxf7+ {[%clk 0:00:15]}  Kh8 {[%clk 0:00:24]} 33. Re4 {[%clk 0:00:14]}  Qc5 {[%clk 0:00:25]} 34. e6 {[%clk 0:00:15]}  Re7 {[%clk 0:00:21]} 35. Qf3 {[%clk 0:00:13]}  Rde8 {[%clk 0:00:19]} 36. Qe2 {[%clk 0:00:12]}  b5 {[%clk 0:00:19]} 37. Rf7 {[%clk 0:00:12]}  b4 {[%clk 0:00:17]} 38. Rxe7 {[%clk 0:00:10]}  Qxe7 {[%clk 0:00:08]} 39. Qb5 {[%clk 0:00:10]}  Bc3 {[%clk 0:00:09]} 40. Bf3 {[%clk 0:00:10]}  Kg7 {[%clk 0:00:08]} 41. Kg2 {[%clk 0:00:09]}  Rd8 {[%clk 0:00:08]} 42. Rc4 {[%clk 0:00:09]}  Rd2+ {[%clk 0:00:08]} 43. Kf1 {[%clk 0:00:07]}  Qf6 {[%clk 0:00:08]} 44. Rc7+ {[%clk 0:00:08]}  Kh6 {[%clk 0:00:03]} 45. g5+ {[%clk 0:00:07]}  Qxg5 {[%clk 0:00:03]} 46. Qxg5+ {[%clk 0:00:07]}  Kxg5 {[%clk 0:00:04]} 47. e7 {[%clk 0:00:08]}  Rd3 {[%clk 0:00:04]} 48. e8=Q {[%clk 0:00:08]}  Rxf3+ {[%clk 0:00:03]} 49. Kg2 {[%clk 0:00:08]}  Rf5 {[%clk 0:00:03]} 50. Qe7+ {[%clk 0:00:08]}  Bf6 {[%clk 0:00:03]} 51. Qxh7 {[%clk 0:00:07]} 1-0


[Site "https://www.chess.com"]

[Event "Titled Tuesday Blitz January 10 Late 2023"]
[White "Makridis, Dimitrios"]
[Black "Yurovskykh, Oleksandr"]
[WhiteFideId "25864475"]
[BlackFideId "14134020"]
[WhiteElo "2356"]
[BlackElo "2328"]
[Result "1-0"]
[Round "06"]
[TimeControl "180+2"]
[Date "2023.01.10"]
[WhiteClock "0:01:17"]
[BlackClock "0:00:19"]

1. e4 {[%clk 0:00:00]}  c6 {[%clk 0:00:00]} 2. d4 {[%clk 0:03:00]}  d5 {[%clk 0:02:59]} 3. exd5 {[%clk 0:03:00]}  cxd5 {[%clk 0:02:59]} 4. Bd3 {[%clk 0:03:01]}  Nc6 {[%clk 0:03:00]} 5. c3 {[%clk 0:03:02]}  Nf6 {[%clk 0:03:00]} 6. h3 {[%clk 0:03:02]}  g6 {[%clk 0:03:00]} 7. Nf3 {[%clk 0:03:03]}  Bf5 {[%clk 0:03:00]} 8. Ne5 {[%clk 0:03:03]}  Bxd3 {[%clk 0:03:00]} 9. Nxd3 {[%clk 0:03:04]}  e6 {[%clk 0:02:44]} 10. O-O {[%clk 0:03:05]}  Bg7 {[%clk 0:02:45]} 11. Bf4 {[%clk 0:03:05]}  O-O {[%clk 0:02:33]} 12. Nd2 {[%clk 0:03:02]}  Rc8 {[%clk 0:02:32]} 13. Re1 {[%clk 0:03:01]}  Re8 {[%clk 0:02:30]} 14. Bh2 {[%clk 0:03:00]}  Na5 {[%clk 0:02:26]} 15. Ne5 {[%clk 0:02:52]}  Nd7 {[%clk 0:02:22]} 16. Qa4 {[%clk 0:02:46]}  Nxe5 {[%clk 0:02:15]} 17. dxe5 {[%clk 0:02:31]}  Nc6 {[%clk 0:02:10]} 18. Nf3 {[%clk 0:02:32]}  Qb6 {[%clk 0:01:41]} 19. Re2 {[%clk 0:02:22]}  Qa6 {[%clk 0:01:38]} 20. Qxa6 {[%clk 0:02:15]}  bxa6 {[%clk 0:01:35]} 21. Rd1 {[%clk 0:02:07]}  Rb8 {[%clk 0:01:36]} 22. Nd4 {[%clk 0:02:07]}  Nxd4 {[%clk 0:01:29]} 23. Rxd4 {[%clk 0:02:00]}  Rec8 {[%clk 0:01:27]} 24. Bf4 {[%clk 0:02:01]}  Bf8 {[%clk 0:01:20]} 25. Ra4 {[%clk 0:01:56]}  Rc6 {[%clk 0:01:20]} 26. Be3 {[%clk 0:01:54]}  Rb7 {[%clk 0:01:04]} 27. Bd4 {[%clk 0:01:51]}  h5 {[%clk 0:01:04]} 28. g4 {[%clk 0:01:51]}  hxg4 {[%clk 0:01:03]} 29. hxg4 {[%clk 0:01:50]}  Bh6 {[%clk 0:01:01]} 30. Kg2 {[%clk 0:01:51]}  Bc1 {[%clk 0:01:01]} 31. b4 {[%clk 0:01:48]}  Bg5 {[%clk 0:00:58]} 32. Rb2 {[%clk 0:01:41]}  Bd8 {[%clk 0:00:56]} 33. Kf3 {[%clk 0:01:38]}  Kf8 {[%clk 0:00:40]} 34. Ke2 {[%clk 0:01:38]}  Ke8 {[%clk 0:00:38]} 35. Kd3 {[%clk 0:01:37]}  Kd7 {[%clk 0:00:37]} 36. f4 {[%clk 0:01:36]}  Kc8 {[%clk 0:00:38]} 37. Rh2 {[%clk 0:01:30]}  a5 {[%clk 0:00:38]} 38. a3 {[%clk 0:01:30]}  axb4 {[%clk 0:00:30]} 39. axb4 {[%clk 0:01:30]}  Bb6 {[%clk 0:00:30]} 40. Rh8+ {[%clk 0:01:30]}  Kd7 {[%clk 0:00:20]} 41. Bxb6 {[%clk 0:01:30]}  Rcxb6 {[%clk 0:00:20]} 42. Ra8 {[%clk 0:01:24]}  g5 {[%clk 0:00:21]} 43. fxg5 {[%clk 0:01:22]}  Ke7 {[%clk 0:00:20]} 44. R4xa7 {[%clk 0:01:21]}  Rb5 {[%clk 0:00:19]} 45. Rxb7+ {[%clk 0:01:21]}  Rxb7 {[%clk 0:00:17]} 46. Kd4 {[%clk 0:01:20]}  Rc7 {[%clk 0:00:18]} 47. b5 {[%clk 0:01:16]}  Rc4+ {[%clk 0:00:19]} 48. Kd3 {[%clk 0:01:17]}  Rxg4 {[%clk 0:00:19]} 49. b6 {[%clk 0:01:17]} 1-0


[Site "https://www.chess.com"]

[Event "Titled Tuesday Blitz January 10 Late 2023"]
[White "Janaszak, Dawid"]
[Black "Caruana, Fabiano"]
[WhiteFideId "1119206"]
[BlackFideId "2020009"]
[WhiteElo "2316"]
[BlackElo "2764"]
[Result "0-1"]
[Round "06"]
[TimeControl "180+2"]
[Date "2023.01.10"]
[WhiteClock "0:00:07"]
[BlackClock "0:00:48"]

1. e4 {[%clk 0:00:00]}  c5 {[%clk 0:00:00]} 2. Nc3 {[%clk 0:02:57]}  g6 {[%clk 0:02:59]} 3. Bc4 {[%clk 0:02:57]}  Bg7 {[%clk 0:02:58]} 4. h4 {[%clk 0:02:54]}  h6 {[%clk 0:02:58]} 5. h5 {[%clk 0:02:55]}  g5 {[%clk 0:02:54]} 6. d3 {[%clk 0:02:54]}  e6 {[%clk 0:02:53]} 7. f4 {[%clk 0:02:48]}  gxf4 {[%clk 0:02:53]} 8. Bxf4 {[%clk 0:02:47]}  Nc6 {[%clk 0:02:50]} 9. Qg4 {[%clk 0:02:48]}  Be5 {[%clk 0:02:49]} 10. Nge2 {[%clk 0:02:30]}  Nf6 {[%clk 0:02:25]} 11. Qf3 {[%clk 0:01:54]}  Nh7 {[%clk 0:02:12]} 12. O-O {[%clk 0:01:48]}  Ng5 {[%clk 0:01:41]} 13. Qf2 {[%clk 0:01:33]}  Qe7 {[%clk 0:01:40]} 14. Kh1 {[%clk 0:01:04]}  a6 {[%clk 0:01:32]} 15. a4 {[%clk 0:00:54]}  b6 {[%clk 0:01:29]} 16. Qg3 {[%clk 0:00:51]}  d6 {[%clk 0:01:27]} 17. Bxe5 {[%clk 0:00:45]}  Nxe5 {[%clk 0:01:20]} 18. Bb3 {[%clk 0:00:37]}  Bb7 {[%clk 0:01:21]} 19. Rae1 {[%clk 0:00:30]}  O-O-O {[%clk 0:01:20]} 20. Qf4 {[%clk 0:00:27]}  Kb8 {[%clk 0:01:19]} 21. Qf6 {[%clk 0:00:22]}  Qc7 {[%clk 0:01:13]} 22. Ng3 {[%clk 0:00:22]}  Rdg8 {[%clk 0:01:09]} 23. Qf4 {[%clk 0:00:19]}  Rh7 {[%clk 0:01:03]} 24. Nd1 {[%clk 0:00:16]}  Rhg7 {[%clk 0:01:01]} 25. Ne3 {[%clk 0:00:13]}  Nh3 {[%clk 0:01:01]} 26. gxh3 {[%clk 0:00:13]}  Rxg3 {[%clk 0:00:57]} 27. Kh2 {[%clk 0:00:12]}  f5 {[%clk 0:00:57]} 28. Rg1 {[%clk 0:00:10]}  Nf3+ {[%clk 0:00:55]} 29. Qxf3 {[%clk 0:00:09]}  Rxf3 {[%clk 0:00:48]} 30. Rxg8+ {[%clk 0:00:08]}  Ka7 {[%clk 0:00:49]} 31. Nc4 {[%clk 0:00:08]}  d5+ {[%clk 0:00:49]} 32. Kg2 {[%clk 0:00:07]}  dxc4 {[%clk 0:00:49]} 33. Kxf3 {[%clk 0:00:07]}  cxb3 {[%clk 0:00:48]} 34. cxb3 {[%clk 0:00:07]}  Qf7 {[%clk 0:00:48]} 35. Reg1 {[%clk 0:00:07]}  fxe4+ {[%clk 0:00:48]} 0-1


[Site "https://www.chess.com"]